bitfinex/quotes_ETHUSD_20250131
["timestamp","ask_amount","ask_price","bid_price","bid_amount"]
[1738289871654,3.09838624,3264.4,3264.3,0.9607947]
[1738289871872,3.09838624,3264.4,3264.3,0.1682947]
[1738289872381,6.87788624,3264.4,3264.3,0.1682947]
[1738289875856,6.09838624,3264.4,3264.3,0.1682947]
[1738289876058,3.09838624,3264.4,3264.3,0.1682947]
[1738289876379,0.03503624,3264.4,3264.3,0.1682947]
[1738289876570,3.06318,3264.6,3264.3,0.1682947]
[1738289876767,0.03490509,3264.5,3264.3,0.1682947]
[1738289877285,3.09815509,3264.5,3264.3,0.1682947]
[1738289877482,3.08646278,3264.4,3264.3,0.1682947]
[1738289877861,3.12107917,3264.4,3264.3,0.1682947]
[1738289878062,3.09796639,3264.4,3264.3,0.1682947]
[1738289879089,0.03461639,3264.4,3264.3,0.1682947]
[1738289879391,3.0,3264.7,3264.3,0.9292947]
[1738289879584,0.03454798,3264.4,3264.3,0.9292947]
[1738289879788,3.0,3264.7,3264.3,0.9292947]
[1738289879997,0.03454798,3264.4,3264.3,0.9292947]
[1738289880155,3.0628,3265.0,3264.3,0.9292947]
[1738289880356,3.89331,3265.4,3264.7,3.06299]
[1738289880616,3.89331,3265.4,3264.8,0.7912]
[1738289880617,3.06252,3265.3,3264.8,0.7912]
[1738289880922,3.09597658,3265.3,3264.8,0.7912]
[1738289881070,3.03344658,3265.3,3264.8,0.7912]
[1738289881457,0.03344658,3265.3,3264.8,0.7912]
[1738289881791,3.03344658,3265.3,3264.8,0.7912]
[1738289881962,6.09597658,3265.3,3264.8,0.7912]
[1738289882307,3.09597658,3265.3,3264.8,0.7912]
[1738289882597,3.09597658,3265.3,3263.9,6.07881]
[1738289882598,127.2624923,3264.0,3263.9,6.07881]
[1738289882792,127.2624923,3264.0,3263.9,6.27981]
[1738289882957,127.29461787,3264.0,3263.9,6.27981]
[1738289883311,105.5612863,3264.0,3263.9,6.47981]
[1738289883470,105.20126626,3264.0,3263.9,6.47981]
[1738289884359,105.20126626,3264.0,3263.9,7.02981]
[1738289884559,105.20126626,3264.0,3263.9,6.98061237]
[1738289884862,105.20126626,3264.0,3263.9,6.82881]
[1738289885287,105.20126626,3264.0,3263.9,7.13081]
[1738289887401,87.78693346,3264.0,3263.9,6.92881]
[1738289887585,82.07321346,3264.0,3263.9,7.13081]
[1738289887762,79.00949346,3264.0,3263.9,7.13081]
[1738289888597,78.39677418,3264.0,3263.9,7.13081]
[1738289890677,77.12042763,3264.0,3263.9,7.13081]
[1738289891704,77.12042763,3264.0,3263.9,6.92881]
[1738289892019,77.12042763,3264.0,3263.9,6.37881]
[1738289892220,77.12042763,3264.0,3263.9,6.27881]
[1738289892439,77.12042763,3264.0,3263.9,6.28081]
[1738289892755,77.12042763,3264.0,3263.9,3.28081]
[1738289893417,77.12042763,3264.0,3263.9,6.83081]
[1738289896132,77.12042763,3264.0,3263.9,6.62881]
[1738289896313,77.12042763,3264.0,3263.9,41.62881]
[1738289896504,77.12042763,3264.0,3263.9,41.83081]
[1738289899368,77.12042763,3264.0,3263.9,41.62881]
[1738289899541,77.12042763,3264.0,3263.9,41.83081]
[1738289902628,77.08830206,3264.0,3263.9,41.83081]
[1738289902833,77.12126006,3264.0,3263.9,41.83081]
[1738289904950,77.12126006,3264.0,3263.9,41.82981]
[1738289909785,77.12126006,3264.0,3263.9,41.92981]
[1738289910166,77.12126006,3264.0,3263.9,41.82981]
[1738289910366,77.12126006,3264.0,3263.9,41.07131]
[1738289910701,77.12126006,3264.0,3263.9,41.27231]
[1738289910902,77.12126006,3264.0,3263.9,38.27231]
[1738289911402,77.12126006,3264.0,3263.9,38.82231]
[1738289912222,77.12126006,3264.0,3263.9,41.92981]
[1738289912369,77.08830206,3264.0,3263.9,35.0]
[1738289912697,77.12113016,3264.0,3263.9,35.0]
[1738289912906,77.90473016,3264.0,3263.9,35.0]
[1738289917129,77.12113016,3264.0,3263.9,35.0]
[1738289918450,71.62494938,3264.0,3263.9,41.62881]
[1738289918658,26.52440953,3264.0,3263.9,41.72881]
[1738289918796,26.09764289,3264.0,3263.9,41.62131]
[1738289918995,26.09764289,3264.0,3263.9,35.203]
[1738289921000,26.09764289,3264.0,3263.9,38.26681]
[1738289921305,26.06481479,3264.0,3263.9,38.26681]
[1738289921602,26.09499055,3264.0,3263.9,38.26681]
[1738289924824,26.89109055,3264.0,3263.9,38.26681]
[1738289925602,26.89109055,3264.0,3263.9,38.06381]
[1738289925807,26.89109055,3264.0,3263.1,3.0075]
[1738289925808,3.82339,3263.9,3263.1,3.06448]
[1738289926142,0.7595,3263.4,3262.8,3.06484]
[1738289926349,0.7595,3263.4,3263.1,3.0645]
[1738289926503,0.7595,3263.2,3263.0,35.0]
[1738289927904,0.7595,3263.2,3262.8,3.06484]
[1738289928217,0.02992984,3263.1,3262.9,0.306484]
[1738289929138,0.02992984,3263.1,3262.9,3.371224]
[1738289929441,0.02992984,3263.1,3263.0,35.0]
[1738289929837,0.7595,3263.2,3263.0,35.0]
[1738289930906,0.7595,3263.2,3263.1,3.06457]
[1738289932717,0.78907024,3263.2,3263.1,3.06457]
[1738289932935,0.7595,3263.2,3263.1,38.06457]
[1738289933644,0.7595,3263.2,3263.1,35.0]
[1738289934351,0.7595,3263.2,3263.1,38.06457]
[1738289935315,0.7658,3263.5,3263.4,3.06427]
[1738289935651,0.79541699,3263.5,3263.4,3.06427]
[1738289938170,0.79541699,3263.5,3263.2,3.06446]
[1738289938866,0.79541699,3263.5,3263.1,35.0]
[1738289939066,6.70619148,3263.5,3263.1,35.0]
[1738289939374,6.70619148,3263.5,3262.9,0.202]
[1738289939375,0.8321,3263.4,3262.9,0.202]
[1738289939535,3.89638,3263.4,3262.9,0.202]
[1738289939731,0.8321,3263.2,3262.8,3.06483]
[1738289940538,0.02958037,3263.1,3262.8,3.06483]
[1738289940839,0.02958037,3263.1,3262.9,35.0]
[1738289941372,0.8321,3263.2,3262.9,35.0]
[1738289943054,0.05266477,3263.1,3262.9,35.0]
[1738289943248,0.02955199,3263.1,3262.6,3.06501]
[1738289943573,0.7523,3263.0,3262.4,3.0652]
[1738289943801,0.7523,3263.0,3262.7,3.06494]
[1738289944006,0.02944688,3262.9,3262.8,3.06485]
[1738289944303,0.7523,3263.0,3262.8,3.06485]
[1738289944694,0.7523,3263.0,3262.7,3.06494]
[1738289944695,0.7523,3263.0,3262.9,35.0]
[1738289946006,0.7523,3263.0,3262.9,38.06475]
[1738289946403,0.7918,3263.2,3262.9,38.06475]
[1738289948918,0.7918,3263.2,3262.9,3.06475]
[1738289949473,0.7918,3263.2,3263.1,3.06457]
[1738289949671,3.65732449,3263.5,3263.3,3.06438]
[1738289950101,0.02950717,3263.4,3263.3,3.06438]
[1738289950272,0.02950717,3263.4,3263.3,38.06438]
[1738289950479,0.02950717,3263.4,3263.1,3.06457]
[1738289950875,0.02950717,3263.4,3263.2,3.06446]
[1738289951075,0.02950717,3263.4,3263.2,38.06446]
[1738289951294,0.02950717,3263.4,3263.2,3.06446]
[1738289951528,0.02950717,3263.4,3263.1,3.06457]
[1738289951845,0.02950717,3263.4,3263.3,3.06438]
[1738289953692,0.7643,3263.7,3263.3,3.06438]
[1738289953895,0.02950496,3263.4,3263.3,3.06438]
[1738289954116,0.7643,3263.7,3263.3,3.06438]
[1738289954315,0.02950717,3263.4,3263.3,3.06438]
[1738289954490,0.7643,3263.7,3263.3,3.06438]
[1738289954702,0.02940788,3263.4,3263.3,3.06438]
[1738289955029,0.7643,3263.7,3263.3,3.06438]
[1738289955232,0.7643,3263.7,3263.3,35.0]
[1738289955729,0.02941698,3263.6,3263.3,35.0]
[1738289957598,0.02941698,3263.6,3263.4,3.06428]
[1738289960745,0.02941698,3263.6,3263.5,3.06419]
[1738289961045,0.80711698,3263.6,3263.2,3.26642]
[1738289962651,0.80711698,3263.6,3263.3,3.06437]
[1738289962652,0.02941698,3263.6,3263.3,3.06437]
[1738289962851,0.02941698,3263.6,3263.5,3.06419]
[1738289963015,0.7738,3264.2,3263.7,3.06399]
[1738289963215,0.7738,3264.2,3263.8,0.03063604]
[1738289963416,0.7738,3264.2,3263.7,3.06399]
[1738289964237,3.83734,3264.2,3263.6,3.09472604]
[1738289964716,3.83734,3264.2,3263.7,35.0]
[1738289965630,0.7738,3264.2,3263.7,38.06394]
[1738289965956,0.7738,3264.2,3263.8,0.03063517]
[1738289966942,3.06345,3264.3,3263.7,38.06394]
[1738289967270,3.06354,3264.2,3263.7,38.06394]
[1738289967562,3.06345,3264.3,3263.7,38.06394]
[1738289967964,3.06357,3264.2,3263.7,35.0]
[1738289968165,3.81611,3263.8,3263.1,3.06455]
[1738289968465,3.81611,3263.8,3263.2,0.201]
[1738289968667,3.81611,3263.8,3263.2,35.80340594]
[1738289968824,0.7522,3263.8,3263.3,0.03063901]
[1738289969030,0.7522,3263.8,3263.3,3.09498901]
[1738289969236,0.7522,3264.1,3263.4,3.06422]
[1738289969430,0.7522,3264.1,3263.5,0.03063849]
[1738289969661,0.7522,3264.1,3263.1,3.06449]
[1738289969867,3.06372,3264.0,3263.2,0.306449]
[1738289970070,3.06414,3263.6,3262.9,3.2657]
[1738289970289,3.06414,3263.6,3262.9,6.0647]
[1738289970581,3.06408,3263.7,3263.1,3.06456]
[1738289970993,0.02967919,3263.6,3263.2,0.02285255]
[1738289972465,0.02967919,3263.6,3263.1,3.06456]
[1738289972763,0.02967919,3263.6,3263.0,0.02285256]
[1738289972965,0.7522,3263.5,3263.0,0.02285256]
[1738289973170,0.7522,3263.5,3263.0,3.08747314]
[1738289973482,0.02966567,3263.4,3263.0,3.08747314]
[1738289973681,0.02966567,3263.4,3263.0,3.06462]
[1738289974096,0.02966567,3263.4,3263.1,3.06455]
[1738289975571,0.02966567,3263.4,3263.0,3.06466]
[1738289976971,0.7522,3263.5,3263.0,3.06466]
[1738289977609,0.7522,3263.5,3263.1,3.06451]
[1738289977814,0.795,3263.7,3263.1,3.06451]
[1738289978108,0.02967919,3263.6,3263.1,3.06451]
[1738289980809,0.02967919,3263.6,3263.3,3.06432]
[1738289981102,3.86023,3264.0,3263.4,3.06426]
[1738289981309,0.0296005,3263.5,3263.4,3.06426]
[1738289981480,0.7965,3264.0,3263.4,3.06426]
[1738289981682,0.7965,3264.0,3263.6,3.06409]
[1738289983611,0.7965,3264.0,3263.7,3.064]
[1738289983982,0.793,3264.4,3263.9,3.06381]
[1738289984182,1.49990682,3264.4,3263.9,3.06381]
[1738289984410,3.3118,3264.8,3263.9,3.06381]
[1738289984411,6.15832449,3264.8,3264.1,3.06362]
[1738289984708,6.15832449,3264.8,3263.4,3.06422]
[1738289984709,0.2488,3264.8,3264.0,0.201]
[1738289984908,3.31178,3264.8,3264.2,3.06347]
[1738289985919,0.02990996,3264.7,3264.2,3.06347]
[1738289986225,0.8261,3264.5,3263.8,3.06389]
[1738289986420,3.06354,3264.2,3263.6,3.06407]
[1738289986619,3.06354,3264.2,3263.5,0.82582567]
[1738289986620,3.45633313,3264.2,3263.5,0.201]
[1738289986922,0.02983856,3264.1,3263.5,3.06418]
[1738289988037,0.02983856,3264.1,3263.8,3.06389]
[1738289988526,0.8261,3264.3,3263.8,3.06389]
[1738289988714,0.02995412,3264.0,3263.8,3.06389]
[1738289989112,0.8261,3264.3,3263.8,3.06389]
[1738289989322,0.02987982,3263.9,3263.8,3.06389]
[1738289989494,0.8261,3264.3,3263.7,3.064]
[1738289989838,0.0299107,3263.9,3263.7,3.064]
[1738289990042,0.8261,3264.3,3263.7,3.064]
[1738289990328,0.02990394,3263.8,3263.7,3.064]
[1738289990503,0.02993097,3264.2,3263.8,3.06389]
[1738289990836,0.8261,3264.3,3263.8,3.06389]
[1738289991953,0.7957,3264.6,3264.2,3.06352]
[1738289992249,0.2488,3264.8,3264.4,3.06328]
[1738289994113,0.2488,3264.8,3264.6,3.06315]
[1738289994311,0.2488,3264.8,3264.6,3.06311]
[1738289994633,0.2488,3264.8,3264.4,3.06332]
[1738289996217,0.2488,3264.8,3264.2,3.0635]
[1738289996802,0.2488,3264.8,3264.3,3.06341]
[1738290000958,0.03018674,3264.7,3264.3,3.06341]
[1738290001460,0.7604,3264.6,3263.6,3.06404]
[1738290001678,3.06344,3264.3,3263.8,0.61563345]
[1738290001820,3.06331,3264.5,3263.8,3.67954345]
[1738290002649,0.7677,3264.2,3263.6,3.06409]
[1738290002852,3.06365,3264.1,3263.5,3.06419]
[1738290003242,0.02970357,3264.0,3263.9,0.28595195]
[1738290003561,3.83123,3264.2,3263.9,0.28595195]
[1738290003727,0.02949362,3264.1,3263.9,0.28595195]
[1738290005167,0.02949362,3264.1,3264.0,0.28595195]
[1738290007327,3.09312362,3264.1,3264.0,0.28595195]
[1738290007537,3.78939728,3264.1,3264.0,0.28595195]
[1738290008369,0.02949362,3264.1,3264.0,0.28595195]
[1738290008972,0.02949362,3264.1,3264.0,3.34967195]
[1738290009177,0.811,3264.5,3264.3,3.06342]
[1738290009972,0.7525,3264.7,3264.4,0.28595195]
[1738290010637,0.2488,3264.8,3264.4,0.28595195]
[1738290011303,0.2488,3264.8,3264.4,3.34922195]
[1738290011640,0.2488,3264.8,3264.5,0.28595195]
[1738290012981,3.31178,3264.8,3264.5,0.28595195]
[1738290013784,3.31178,3264.8,3264.6,0.28595195]
[1738290014481,0.2488,3264.8,3264.6,0.28595195]
[1738290015147,0.2488,3264.8,3264.7,0.28595195]
[1738290015760,0.27828055,3264.8,3264.7,0.28595195]
[1738290018500,0.27828055,3264.8,3264.7,6.91401195]
[1738290018851,0.8034,3265.9,3264.8,3.06297]
[1738290018997,3.0625,3265.4,3264.9,35.0]
[1738290019159,3.86601,3265.2,3264.7,0.28595195]
[1738290019492,3.06288,3264.9,3264.7,0.28595195]
[1738290019691,3.06297,3264.8,3264.7,0.28595195]
[1738290020072,3.06297,3264.8,3264.2,3.0635]
[1738290021375,3.06297,3264.8,3264.3,0.28646744]
[1738290021856,3.06297,3264.8,3264.3,0.57294219]
[1738290023103,3.06297,3264.8,3264.4,0.28646744]
[1738290023277,3.06297,3264.8,3264.4,0.57294219]
[1738290024191,3.90452722,3265.0,3264.4,0.57294219]
[1738290024502,3.86624,3265.0,3264.5,0.28646744]
[1738290024866,3.86624,3265.0,3264.5,0.57294219]
[1738290025665,3.86624,3265.0,3264.6,0.28646744]
[1738290026001,0.8034,3265.0,3264.6,0.28646744]
[1738290026580,3.8662,3265.0,3264.6,0.28646744]
[1738290026781,4.559091,3265.0,3264.7,0.28647475]
[1738290027171,4.559091,3265.0,3264.7,0.57294219]
[1738290027722,3.06288,3264.9,3264.7,0.57294219]
[1738290028299,3.06288,3264.9,3264.8,0.28647475]
[1738290029105,3.06288,3264.9,3264.8,0.57294219]
[1738290030129,0.8034,3265.0,3264.8,0.57294219]
[1738290031212,3.86618,3265.0,3264.9,0.28647475]
[1738290031413,4.25278,3265.0,3264.9,0.28647475]
[1738290031715,4.25278,3265.0,3264.9,0.57294219]
[1738290031913,4.29106934,3265.0,3264.9,0.57294219]
[1738290032321,4.35997303,3265.0,3264.9,0.57294219]
[1738290032518,4.35997303,3265.0,3264.9,0.28646744]
[1738290032887,3.06306,3264.8,3264.1,3.06362]
[1738290033088,3.06306,3264.8,3264.2,0.306362]
[1738290033285,3.06306,3264.8,3264.2,3.369832]
[1738290033498,0.06900703,3264.7,3264.2,3.369832]
[1738290033904,0.06900703,3264.7,3264.3,0.57301314]
[1738290034218,6.92903,3265.0,3264.3,3.63644314]
[1738290034424,3.0629,3264.9,3264.3,3.63644314]
[1738290035025,0.06889615,3264.8,3264.3,3.63644314]
[1738290035224,0.06889615,3264.8,3264.4,0.28647863]
[1738290035624,0.06889615,3264.8,3264.4,0.57301314]
[1738290036720,0.06889615,3264.8,3264.5,0.28647863]
[1738290037087,3.10092511,3265.2,3264.5,3.63623314]
[1738290037294,0.06892488,3264.7,3264.5,3.63624314]
[1738290037596,0.06891939,3264.6,3264.5,3.34976451]
[1738290037800,3.06273,3265.1,3264.5,3.34976451]
[1738290038002,0.06894135,3265.0,3264.5,3.34976451]
[1738290039416,0.06894135,3265.0,3264.6,0.28653451]
[1738290040126,0.06894135,3265.0,3264.9,3.06288]
[1738290040487,3.85684,3265.5,3264.9,3.06288]
[1738290040688,0.06816992,3265.0,3264.9,3.06288]
[1738290040924,3.85684,3265.5,3264.9,3.06288]
[1738290041127,0.06816992,3265.0,3264.9,3.06288]
[1738290041348,0.7945,3265.8,3265.0,3.06278]
[1738290041525,3.0623,3265.6,3265.0,3.06278]
[1738290041904,0.06828976,3265.5,3265.0,3.06278]
[1738290042111,3.06273,3265.1,3264.9,0.28653451]
[1738290042514,0.06835471,3265.0,3264.5,3.06325]
[1738290042717,0.06835471,3265.0,3264.6,0.326525]
[1738290043332,0.06835471,3265.0,3264.6,3.389665]
[1738290043694,3.0625,3265.3,3264.6,3.389665]
[1738290043932,0.06841426,3264.9,3264.6,3.389665]
[1738290044231,0.06840877,3264.8,3264.7,0.28663016]
[1738290044528,0.06840877,3264.8,3264.7,0.89101122]
[1738290044690,3.0625,3265.3,3264.7,0.89101122]
[1738290044894,0.06840877,3264.8,3264.7,0.57325845]
[1738290045093,0.7564,3265.4,3264.7,0.57325845]
[1738290045094,0.7564,3265.4,3265.0,3.06278]
[1738290045714,0.7564,3265.4,3264.9,3.06281]
[1738290045915,0.068438,3265.3,3264.9,3.06281]
[1738290046102,0.068438,3265.3,3265.1,0.28662829]
[1738290047001,0.068438,3265.3,3265.2,0.28663016]
[1738290047195,0.068438,3265.3,3265.2,3.34922016]
[1738290047422,0.7855,3265.8,3265.2,3.34922016]
[1738290047734,0.0684497,3265.7,3265.2,3.63584845]
[1738290048549,0.0684497,3265.7,3265.3,0.28663016]
[1738290048947,0.7855,3265.8,3265.3,0.28663016]
[1738290049249,0.0684497,3265.7,3265.3,0.28663016]
[1738290049649,0.7855,3265.8,3265.3,0.28663016]
[1738290049945,0.06844421,3265.6,3265.3,0.28663016]
[1738290050150,0.06844612,3265.7,3265.3,0.28663016]
[1738290050319,0.06843514,3265.5,3265.3,0.28663016]
[1738290050519,0.7855,3265.8,3265.3,0.28663016]
[1738290050906,0.06842898,3265.7,3265.3,0.28663016]
[1738290051355,0.7855,3265.8,3265.4,0.28662829]
[1738290051647,0.06843077,3265.7,3265.4,0.57325845]
[1738290052155,3.84755,3265.8,3265.4,0.57325845]
[1738290052360,0.06842528,3265.6,3265.4,0.57325845]
[1738290052520,3.88582715,3265.8,3265.5,0.28662829]
[1738290052838,3.84755,3265.8,3265.5,0.57325845]
[1738290054242,3.84755,3265.8,3265.5,0.28663016]
[1738290054740,3.84755,3265.8,3265.6,0.28663016]
[1738290055612,3.84755,3265.8,3265.2,3.06259]
[1738290056790,3.84755,3265.8,3265.3,0.28630163]
[1738290057075,0.7855,3265.8,3265.3,3.34880163]
[1738290057276,0.7855,3265.8,3265.3,3.63510343]
[1738290057651,3.8319,3266.0,3265.3,3.63510343]
[1738290057836,3.8319,3266.0,3265.4,0.28630163]
[1738290058040,0.77,3266.2,3265.7,3.06206]
[1738290058240,0.77,3266.2,3265.5,3.06225]
[1738290058241,0.03827202,3266.1,3265.5,3.06225]
[1738290058533,3.06219,3265.7,3265.4,0.28630163]
[1738290058973,3.06219,3265.7,3265.1,2.88529343]
[1738290059953,3.06219,3265.7,3265.2,3.06259]
[1738290061387,0.77,3265.8,3265.3,3.06244]
[1738290061887,0.06877292,3265.7,3265.3,3.06244]
[1738290062284,0.77,3265.8,3265.3,3.06244]
[1738290062486,0.06876743,3265.6,3265.3,3.06244]
[1738290062693,0.06877292,3265.7,3265.3,3.06244]
[1738290062890,0.77,3265.8,3265.5,3.06223]
[1738290063095,0.06876743,3265.6,3265.5,3.06223]
[1738290063274,0.77,3265.8,3265.5,3.06223]
[1738290063472,0.06874349,3265.6,3265.5,3.06223]
[1738290063658,0.77,3265.8,3265.5,3.06223]
[1738290063859,0.06874349,3265.6,3265.5,3.06223]
[1738290064060,0.77,3265.8,3265.5,3.06223]
[1738290064282,0.06874349,3265.6,3265.5,3.06223]
[1738290064497,0.77,3265.8,3265.5,3.06223]
[1738290064699,0.06874349,3265.6,3265.3,3.06249]
[1738290064899,0.77,3265.8,3265.3,3.06249]
[1738290065095,1.153193,3265.8,3264.8,0.61074593]
[1738290065280,3.06251,3265.3,3264.7,3.06306]
[1738290065480,0.7732,3265.1,3264.7,3.06306]
[1738290065682,0.7732,3265.1,3264.5,3.06323]
[1738290065864,0.06871743,3265.0,3264.7,3.06303]
[1738290066256,3.16984135,3265.0,3264.0,3.06366]
[1738290066482,3.16984135,3265.0,3264.2,3.06347]
[1738290066483,3.06294,3264.9,3264.2,3.06347]
[1738290066760,3.89212,3264.7,3264.0,35.0]
[1738290066960,0.06841492,3264.6,3264.0,35.0]
[1738290067395,0.06841492,3264.6,3264.0,3.06372]
[1738290067566,0.06841492,3264.6,3264.3,3.06336]
[1738290067772,0.06841492,3264.6,3264.1,3.06356]
[1738290067975,0.06841492,3264.6,3264.2,3.0635]
[1738290070573,0.06841492,3264.6,3264.1,3.06356]
[1738290070574,0.06841492,3264.6,3264.1,3.06361]
[1738290071454,0.06841492,3264.6,3264.2,0.28638331]
[1738290071565,0.06841492,3264.6,3264.2,0.57269618]
[1738290071765,0.8201,3265.0,3264.6,3.06314]
[1738290072001,0.06809768,3264.9,3264.6,3.06314]
[1738290073079,0.06809768,3264.9,3264.7,0.28631287]
[1738290073804,0.06809768,3264.9,3264.7,0.57269618]
[1738290074803,0.06809768,3264.9,3264.8,0.28631287]
[1738290075704,0.06809768,3264.9,3264.8,0.57269618]
[1738290076102,3.52606645,3264.9,3264.8,0.57269618]
[1738290076310,4.28036645,3264.9,3264.8,0.57269618]
[1738290077226,0.82239768,3264.9,3264.8,0.28638331]
[1738290077921,0.06809768,3264.9,3264.8,0.28638331]
[1738290078293,0.7543,3265.1,3264.8,0.28638331]
[1738290078480,0.068149,3264.9,3264.8,0.28638331]
[1738290078813,0.7667,3265.4,3265.0,3.06272]
[1738290079575,0.7667,3265.4,3264.9,3.06282]
[1738290079987,0.7667,3265.4,3265.1,0.28608427]
[1738290080589,3.06259,3265.2,3265.1,0.28608427]
[1738290080997,3.06259,3265.3,3265.1,0.28608427]
[1738290082891,3.06259,3265.3,3265.2,0.28608427]
[1738290083829,0.7667,3265.4,3265.2,0.28608427]
[1738290084829,0.7667,3265.4,3265.3,0.28608427]
[1738290089934,4.21201,3265.4,3265.3,0.28608427]
[1738290090121,3.82911,3265.4,3265.3,0.28608427]
[1738290090830,3.89736448,3265.4,3265.3,0.28608427]
[1738290091460,3.93564762,3265.4,3265.3,0.28608427]
[1738290091759,3.89736448,3265.4,3265.3,0.28608427]
[1738290092050,4.63162406,3265.4,3265.3,0.28608427]
[1738290092435,4.59334093,3265.4,3265.3,0.28608427]
[1738290098990,0.76423093,3265.4,3265.3,0.28608427]
[1738290099194,0.06825448,3265.4,3265.3,0.28608427]
[1738290102392,3.87863,3265.6,3265.3,0.28608427]
[1738290102598,0.068286,3265.4,3265.3,0.28608427]
[1738290102762,3.87863,3265.6,3265.3,0.28608427]
[1738290102965,0.068286,3265.4,3265.3,0.28608427]
[1738290103185,3.87863,3265.6,3265.3,0.28608427]
[1738290103388,0.068286,3265.4,3265.3,0.28608427]
[1738290103591,3.87863,3265.6,3265.3,0.28608427]
[1738290103810,0.06830315,3265.4,3265.0,3.06271]
[1738290103991,3.06223,3265.6,3265.0,3.06271]
[1738290104198,0.06829766,3265.3,3265.0,3.06271]
[1738290104398,3.06223,3265.6,3265.0,3.06271]
[1738290104599,0.06831613,3265.2,3265.0,3.06271]
[1738290104899,0.06831064,3265.1,3265.0,3.06271]
[1738290105296,3.06223,3265.6,3265.0,3.06271]
[1738290105504,3.06223,3265.6,3265.1,0.28677885]
[1738290105917,0.0683326,3265.5,3265.1,0.28677885]
[1738290106414,0.0683326,3265.5,3265.2,0.28677885]
[1738290107715,0.0683326,3265.5,3265.3,0.28677885]
[1738290109155,3.1306626,3265.5,3265.3,0.28677885]
[1738290109307,3.1306626,3265.5,3265.4,0.28677885]
[1738290109823,4.55656023,3265.5,3265.4,0.28677885]
[1738290110819,4.51828131,3265.5,3265.4,0.28677885]
[1738290117350,3.9205626,3265.5,3265.4,0.28677885]
[1738290122550,5.38416681,3265.5,3265.4,0.28677885]
[1738290126189,5.42245144,3265.5,3265.4,0.28677885]
[1738290126952,5.38416681,3265.5,3265.4,0.28677885]
[1738290128592,5.42245158,3265.5,3265.4,0.28677885]
[1738290128791,6.57713874,3265.5,3265.4,0.28677885]
[1738290128994,6.53885397,3265.5,3265.4,0.28677885]
[1738290129579,9.53885397,3265.5,3265.4,0.28677885]
[1738290131687,3.0,3265.4,3264.3,0.28677885]
[1738290131891,1.46360421,3264.6,3264.3,0.28677885]
[1738290132087,0.06762252,3264.5,3264.3,0.28677885]
[1738290132400,3.06286,3265.0,3264.4,3.06328]
[1738290132793,4.52646421,3265.0,3264.4,3.06328]
[1738290133372,4.52646421,3265.0,3264.5,0.28677885]
[1738290134703,4.52646421,3265.0,3264.6,0.28677885]
[1738290135198,1.46360421,3265.0,3264.6,0.28677885]
[1738290136002,0.06759999,3264.9,3264.7,0.28677885]
[1738290137307,1.46360421,3264.8,3264.7,0.28677885]
[1738290137507,1.46360421,3264.8,3264.4,3.06328]
[1738290137805,1.46360421,3264.8,3264.5,0.306328]
[1738290137806,4.59418377,3264.8,3264.5,0.306328]
[1738290138005,4.59418377,3264.8,3264.2,3.06352]
[1738290138905,4.59418377,3264.8,3264.3,0.28657855]
[1738290140009,4.59418377,3264.8,3264.4,0.28657855]
[1738290140646,1.46360421,3264.6,3264.4,0.28657855]
[1738290140851,3.101544,3264.5,3264.4,0.28657855]
[1738290141143,3.89359156,3264.5,3264.4,0.28657855]
[1738290141350,3.06362,3264.2,3263.5,3.06412]
[1738290141554,1.46360421,3264.0,3263.5,3.06412]
[1738290141894,0.06742528,3263.9,3263.5,3.06412]
[1738290142428,0.06742528,3263.9,3263.6,0.28648864]
[1738290142736,3.06364,3264.1,3263.6,0.28648864]
[1738290143229,0.06729548,3264.0,3263.6,0.28648864]
[1738290144236,0.06729548,3264.0,3263.7,0.28648864]
[1738290144850,3.06364,3264.1,3263.7,0.28648864]
[1738290145652,0.06730971,3264.0,3263.8,0.28648864]
[1738290146171,0.06730422,3263.9,3263.8,0.28648864]
[1738290146511,3.06356,3264.2,3263.8,0.28648864]
[1738290146934,0.06731521,3264.1,3263.8,0.28648864]
[1738290148223,3.06356,3264.2,3263.8,0.28648864]
[1738290148749,3.06356,3264.2,3263.9,0.28648864]
[1738290149159,0.06731162,3264.1,3263.9,0.28648864]
[1738290149671,3.06356,3264.2,3263.9,0.28648864]
[1738290149846,3.06356,3264.2,3264.0,0.28648864]
[1738290150681,6.10192716,3264.1,3264.0,0.28648864]
[1738290150882,6.87202716,3264.1,3264.0,0.28648864]
[1738290151044,6.06391,3263.8,3263.7,0.28648864]
[1738290151250,9.79558662,3263.8,3263.7,0.28648864]
[1738290151580,9.75728077,3263.8,3263.7,0.28648864]
[1738290151782,11.03938885,3263.8,3263.7,0.28648864]
[1738290152487,3.06457,3263.1,3263.0,0.28648864]
[1738290152648,3.13100443,3263.1,3263.0,0.28648864]
[1738290153633,3.13100443,3263.1,3262.9,2.425]
[1738290154688,0.10474463,3263.1,3262.9,2.425]
[1738290154839,3.06466,3263.0,3262.9,2.425]
[1738290155041,3.13109072,3263.0,3262.9,2.425]
[1738290155801,3.06541,3262.2,3262.1,0.005]
[1738290155934,3.06541,3262.2,3260.1,3.06737]
[1738290155935,3.06588,3261.7,3260.8,3.06673]
[1738290156136,6.64201982,3262.2,3260.3,3.18068303]
[1738290156137,2.85611982,3261.1,3260.3,3.18068303]
[1738290156395,5.92255982,3261.1,3260.4,35.0]
[1738290156549,5.98861101,3261.1,3260.4,35.0]
[1738290156748,6.58086699,3261.1,3260.0,3.06747]
[1738290157066,7.39746699,3261.1,3259.9,3.18068303]
[1738290157455,7.39746699,3261.1,3260.0,3.0674]
[1738290157650,7.39746699,3261.1,3259.9,3.18068303]
[1738290158036,7.39746699,3261.1,3259.9,6.24825303]
[1738290159388,7.39746699,3261.1,3259.9,3.18068303]
[1738290159542,7.39746699,3261.1,3260.0,3.06746]
[1738290159939,7.39746699,3261.1,3259.9,3.18068303]
[1738290160645,7.39746699,3261.1,3259.8,3.06767]
[1738290161597,7.39746699,3261.1,3259.8,38.06767]
[1738290162508,7.39746699,3261.1,3260.0,3.06746]
[1738290165117,7.39746699,3261.1,3260.1,35.0]
[1738290165910,7.39746699,3261.1,3260.0,3.06746]
[1738290166283,7.39746699,3261.1,3259.8,3.06766]